Cogmind - Beta 10.1 @@@ ROGUE MODE // 2020.09.21 @ 18:23:17 Player: DBrickShaw Result: Destroyed by Y-45 Defender with Beam Rifle Performance ------------- Evolutions (1) 500 Regions Visited (3) 600 Robots Destroyed (22) 110 Value Destroyed (531) 531 Prototype IDs (0) 0 Alien Tech Used (0) 0 Bonus (0) 0 TOTAL SCORE: 1741 Bonus ------- None Cogmind --------- Core Integrity 0/400 Matter 256/300 Energy 10/100 System Corruption 0% Temperature Cool (24) Movement Core (200) Ox3 Location -9/Materials Parts ------- > --- POWER (1) -------- (None) > --- PROPULSION (3) --- (None) > --- UTILITY (2) ------ Medium Storage Unit > --- WEAPON (3) ------- Spread Laser > --- INVENTORY (8) ---- Improved Ion Engine Compact Wheel Heat Sink Large Storage Unit Peak State ------------ > --- POWER ------------ Improved Ion Engine > --- PROPULSION ------- Wheel Wheel > --- UTILITY ---------- Small Storage Unit Improved Terrain Scanner > --- WEAPON ----------- Assault Rifle Light Assault Rifle > --- INVENTORY -------- Ion Engine Light Treads Light Treads Compact Wheel Assault Rifle Mining Laser [Rating: 9] Favorites ----------- Power Improved Ion Engine Engine Improved Ion Engine Propulsion Aluminum Leg Leg Aluminum Leg Wheel Wheel Utility Small Storage Unit Device ECM Suite Storage Small Storage Unit Protection Light Armor Plating Weapon Assault Rifle Energy Gun Medium Laser Energy Cannon Beam Cannon Ballistic Gun Assault Rifle Special Weapon Mining Laser Build | -11 -10 -10 -9 ------- Run | Scr Mat Min Mat Slots Evolved 2 | . . . 2 Power . | . . . . Propulsion 1 | . . . 1 Utility . | . . . . Weapon 1 | . . . 1 Parts Attached 38 | 9 14 5 10 Power 5 | 2 2 . 1 Engine 5 | 2 2 . 1 Core . | . . . . Reactor . | . . . . Propulsion 12 | 3 3 2 4 Treads . | . . . . Leg 8 | . 3 1 4 Wheel 4 | 3 . 1 . Hover . | . . . . Flight . | . . . . Utility 7 | 2 4 . 1 Device 3 | 1 1 . 1 Storage 3 | 1 2 . . Processor . | . . . . Hackware . | . . . . Protection 1 | . 1 . . Artifact . | . . . . Weapon 14 | 2 5 3 4 Energy Gun 5 | . 2 1 2 Energy Cannon 1 | . 1 . . Ballistic Gun 6 | 2 1 2 1 Ballistic Cannon . | . . . . Launcher . | . . . . Special Weapon 2 | . 1 . 1 Impact Weapon . | . . . . Slashing Weapon . | . . . . Piercing Weapon . | . . . . Special Melee Weapon . | . . . . Unidentified Prototypes . | . . . . Parts Lost 17 | . 3 3 11 Power 2 | . . . 2 Propulsion 5 | . . 1 4 Utility 2 | . . 1 1 Weapon 8 | . 3 1 4 Highest Loss Streak 6 | . 2 3 6 Average Slot Usage (%) 89 | . 96 84 60 Engine 13 | . 14 14 8 Leg 16 | . 16 22 14 Wheel 9 | . 11 4 4 Device 5 | . 4 . 10 Storage 14 | . 15 14 11 Protection 6 | . 7 7 . Energy Cannon 4 | . 6 . . Ballistic Gun 15 | . 17 15 6 Special Weapon 1 | . . 2 4 Naked Turns . | . . . . Heaviest Build 22 | 13 21 22 21 Greatest Support 30 | 26 20 20 30 Greatest Overweight (x) 2 | . 1 1 2 Average Overweight (x) . | . . . . Largest Inventory Capacity 8 | 6 8 8 8 Average Capacity 6 | 5 6 8 8 Most Carried 8 | 6 6 8 5 Average Carried 5 | 3 5 7 3 Final Capacity 8 | 6 8 8 8 Final Carried 6 | 6 6 6 4 Class Distribution -------------------- 91% | Mutant 5% | Gunner 3% | Scavenger-Mutant Dominant Class ---------------- Mutant | -10/Materials Mutant | -10/Mines Mutant | -9/Materials Resources | -11 -10 -10 -9 ----------- Run | Scr Mat Min Mat Matter Collected 860 | 298 469 56 37 Remotely . | . . . . Salvage Created 827 | 80 679 16 52 Parts 41 | 7 30 . 4 Haulers Intercepted 1 | . 1 . . Recyclers Shooed 4 | . 4 . . Parts Field Recycled . | . . . . Retrieved Matter . | . . . . Parts Self-Destructed . | . . . . Prevented . | . . . . Kills | -11 -10 -10 -9 ------- Run | Scr Mat Min Mat Combat Hostiles Destroyed 13 | . 10 1 2 Guns 7 | . 6 1 . Cannons 6 | . 4 . 2 Classes Destroyed 8 | 2 4 1 1 Worker 2 | . 2 . . Tunneler 1 | 1 . . . Hauler 1 | . 1 . . Recycler 3 | 1 2 . . Watcher 2 | . 2 . . Grunt 11 | . 10 . 1 Duelist 1 | . . . 1 Assembled 1 | . . 1 . Best Kill Streak 4 | 2 4 1 2 Combat Bots Only 2 | . 2 1 2 Max Kills in Single Turn 2 | 1 2 1 1 Gunslinging . | . . . . Exploded . | . . . . Melee . | . . . . Uniques/NPCs Destroyed . | . . . . Combat | -11 -10 -10 -9 -------- Run | Scr Mat Min Mat Damage Taken 2154 | . 484 410 1260 Core 535 | . 70 54 411 Absorbed by Shields . | . . . . Core Remaining (%) 75 | 100 . 50 . Volleys Fired 79 | 2 62 8 7 Largest 3 | 2 2 2 3 Hottest 140 | 40 85 70 140 Shots Fired 145 | 4 117 10 14 Gun 115 | 4 93 10 8 Cannon 24 | . 24 . . Launcher . | . . . . Special 6 | . . . 6 Kinetic 105 | 4 86 8 7 Thermal 39 | . 31 2 6 Explosive . | . . . . Electromagnetic 1 | . . . 1 Robot Hit Streak 9 | 3 9 1 3 Robot Miss Streak 6 | . 4 4 6 Penetration Max . | . . . . Secondary Targets . | . . . . Shots Hit Robots 79 | 3 67 3 6 Core Hits 37 | 2 28 2 5 Critical Hits . | . . . . Critical Kills . | . . . . Critical Parts Destroyed . | . . . . Melee Attacks . | . . . . Impact . | . . . . Slashing . | . . . . Piercing . | . . . . Sneak Attacks . | . . . . Combat Hostiles . | . . . . Follow-up Attacks . | . . . . Damage Inflicted 1067 | 37 887 46 97 Guns 774 | 37 645 45 47 Cannons 242 | . 242 . . Explosions . | . . . . Melee . | . . . . Ramming 3 | . . 1 2 Kinetic 715 | 37 586 45 47 Thermal 349 | . 301 . 48 Explosive . | . . . . Electromagnetic . | . . . . Impact . | . . . . Slashing . | . . . . Piercing . | . . . . Highest Corruption 10 | . . 10 . Average Corruption 10 | . . 10 . Corruption Purged . | . . . . Effects 2 | . . 2 . Data Loss (minor) 1 | . . 1 . Targeting Errors 1 | . . 1 . Overload Shots . | . . . . Overflow Damage . | . . . . Projectiles . | . . . . Explosions . | . . . . Melee . | . . . . Knockbacks . | . . . . Impact . | . . . . Kinetic . | . . . . Secondary . | . . . . Self-Inflicted Damage . | . . . . Shots . | . . . . Rammed 1 | . . 1 . Targets Rammed 2 | . . 1 1 Kicked 1 | . . . 1 Crushed . | . . . . Highest Temperature 248 | . 248 21 144 Average Temperature 64 | . 64 9 73 Received Heat Transfer 621 | . 285 . 336 Effects 2 | . 2 . . Energy Bleed 1 | . 1 . . Interference 1 | . 1 . . Siege Activations . | . . . . Robots Corrupted . | . . . . Combat Hostiles . | . . . . Parts Fried . | . . . . Impact Corruptions . | . . . . Robots Melted . | . . . . Combat Hostiles . | . . . . Parts Melted 1 | . . . 1 Heat Transferred 766 | . 666 . 100 Parts Sabotaged . | . . . . Parts Stolen . | . . . . Parts Stripped . | . . . . Power Chain Reactions . | . . . . Missiles Intercepted . | . . . . Alert | -11 -10 -10 -9 ------- Run | Scr Mat Min Mat Peak Influence 215 | 10 215 72 65 Initial 72 | . 6 72 16 Average 85 | 3 112 60 28 Maximum Alert Level 1 | . 1 . . Low Security (%) 98 | 100 98 100 100 Level 1 1 | . 1 . . Level 2 . | . . . . Level 3 . | . . . . Level 4 . | . . . . Level 5 . | . . . . High Security . | . . . . Max Security . | . . . . Squads Dispatched 6 | . 4 . 2 Investigation . | . . . . Extermination . | . . . . Reinforcement 6 | . 4 . 2 Assault . | . . . . Garrison . | . . . . Intercept . | . . . . Construction Impeded . | . . . . Haulers Reinforced . | . . . . Stealth | -11 -10 -10 -9 --------- Run | Scr Mat Min Mat Distress Signals 5 | . 5 . . Communications Jammed . | . . . . Distress Signals . | . . . . Times Spotted 62 | . 24 8 30 Peak Tracking Total 13 | . 4 9 13 Tactical Retreats 8 | . 2 1 5 Traps | -11 -10 -10 -9 ------- Run | Scr Mat Min Mat Traps Triggered . | . . . . Indirectly . | . . . . Trap Hack Attempts . | . . . . Triggered . | . . . . Disarmed . | . . . . Reprogrammed . | . . . . Reused . | . . . . Traps Extracted . | . . . . Installed . | . . . . Triggered . | . . . . Machines | -11 -10 -10 -9 ---------- Run | Scr Mat Min Mat Machines Disabled 1 | . 1 . . Max in Single Turn 1 | . 1 . . Machines Sabotaged . | . . . . Garrisons Compromised . | . . . . Overloaded Fab Kills . | . . . . Fab Network Shutdowns . | . . . . Hacking | -11 -10 -10 -9 --------- Run | Scr Mat Min Mat Machines Accessed 1 | . . . 1 Terminals . | . . . . Fabricators . | . . . . Repair Stations . | . . . . Recycling Units 1 | . . . 1 Scanalyzers . | . . . . Garrison Access . | . . . . Total Hacks 1 | . . . 1 Successful . | . . . . Failed 1 | . . . 1 Catastrophic 1 | . . . 1 Database Lockouts . | . . . . Manual . | . . . . Terminals . | . . . . Fabricators . | . . . . Repair Stations . | . . . . Recycling Units 1 | . . . 1 Scanalyzers . | . . . . Garrison Access . | . . . . Terminal Hacks . | . . . . Fabricator Hacks . | . . . . Repair Station Hacks . | . . . . Recycling Unit Hacks . | . . . . Scanalyzer . | . . . . Garrison Access Hacks . | . . . . Unauthorized Hacks . | . . . . Terminals . | . . . . Fabricators . | . . . . Repair Stations . | . . . . Recycling Units . | . . . . Scanalyzers . | . . . . Garrison Access . | . . . . Data Cores Recovered . | . . . . Used . | . . . . Hacking Detections 1 | . . . 1 Full Trace Events . | . . . . Feedback Events . | . . . . Feedback Blocked . | . . . . Robot Schematics Acquired . | . . . . Robots Built . | . . . . Matter . | . . . . Time . | . . . . Total Robot Build Rating . | . . . . Part Schematics Acquired . | . . . . Parts Built . | . . . . Matter . | . . . . Time . | . . . . Total Part Build Rating . | . . . . Parts Repaired . | . . . . Time . | . . . . Parts Recycled . | . . . . Recycled Matter . | . . . . Retrieved Matter . | . . . . Retrieved Components . | . . . . Parts Scanalyzed . | . . . . Part Schematics Acquired . | . . . . Parts Damaged . | . . . . Bothacking | -11 -10 -10 -9 ------------ Run | Scr Mat Min Mat Used RIF Installer . | . . . . Robots Hacked . | . . . . Non-combat . | . . . . Combat . | . . . . Robot Hacks Applied . | . . . . Relay Couplers Released . | . . . . Robots Rewired . | . . . . Allies Hacked . | . . . . Hacks Repelled . | . . . . Allies | -11 -10 -10 -9 -------- Run | Scr Mat Min Mat Total Allies . | . . . . Largest Group . | . . . . Highest-Rated Group . | . . . . Highest-Rated Ally . | . . . . Total Orders . | . . . . Ally Attacks . | . . . . Total Damage . | . . . . Kills . | . . . . Allies Corrupted . | . . . . Allies Melted . | . . . . Intel | -11 -10 -10 -9 ------- Run | Scr Mat Min Mat Robot Analysis Total . | . . . . Derelict Logs Recovered . | . . . . Drone Launches . | . . . . Drone Recoveries . | . . . . Exploration | -11 -10 -10 -9 ------------- Run | Scr Mat Min Mat Turns Passed 1170 | 84 786 100 200 Spaces Moved 797 | 68 551 54 124 Core 4 | 2 . . 2 Treads . | . . . . Legs 378 | . 260 38 80 Wheels 415 | 66 291 16 42 Hover . | . . . . Flight . | . . . . Fastest Speed 50 | 50 80 110 100 Average Speed 104 | 85 100 137 117 Slowest Speed 150 | 90 150 150 150 Overloaded Moves . | . . . . Propulsion Burnouts . | . . . . Robots Hopped . | . . . . Cave-ins Triggered . | . . . . Exploration Rate (%) 22 | 4 58 9 18 Regions Visited 3 Branch Regions 1 Pre-discovered Areas . | . . . . Known Exits Taken . | . . . . Unknown Exits Taken 3 | 1 1 1 . Scrap Searched 2 | . . 2 . Spaces Dug . | . . . . Terrain Destroyed 3 | . . . 3 Melee . | . . . . Projectile 3 | . . . 3 AOE . | . . . . Terrain Rammed . | . . . . Walls Destroyed . | . . . . Machines Disabled . | . . . . Actions | -11 -10 -10 -9 --------- Run | Scr Mat Min Mat Total 976 | 85 670 69 152 Wait 30 | 2 20 . 8 Move 794 | 67 550 53 124 Hop . | . . . . Pick Up 16 | 5 9 1 1 Fast Attach 20 | 7 7 . 6 Attach 9 | . 2 3 4 Detach 2 | . . 1 1 Swap 9 | 2 5 2 . Drop 15 | . 15 . . Fire 79 | 2 62 8 7 Melee . | . . . . Ram . | . . . . Kick 2 | . . 1 1 Crush . | . . . . Escape Stasis . | . . . . Rewire . | . . . . Trap . | . . . . Miscellaneous . | . . . . Route ------- -11/Scrapyard -10/Materials (discovered 2 exits: *Mat / [*Min]) -10/Mines -9/Materials (discovered 1 exit: [*Sto]) History --------- Turn | Location | Event 10 | -11/Scrapyard | Discovered new exit (range 15) 85 | -11/Scrapyard | Entered Materials 315 | -10/Materials | Build established: Mutant 444 | -10/Materials | Discovered new exit (range 16) 811 | -10/Materials | Discovered new exit (range 6) 871 | -10/Materials | Entered Mines 912 | -10/Mines | Assembled infested the area 930 | -10/Mines | System corruption reached 10% 947 | -10/Mines | Discovered new exit (range 12) 971 | -10/Mines | Entered Materials 971 | -9/Materials | Evolved 2 slots: Propulsion x1, Weapon x1 972 | -9/Materials | Discovered new exit (range 16) 974 | -9/Materials | Lost 3 parts (1n1u1w) 1083 | -9/Materials | Lost 4 parts (1p3w) 1136 | -9/Materials | Core integrity fell below 50% 1166 | -9/Materials | Core integrity fell below 20% 1171 | -9/Materials | Destroyed by Y-45 Defender with Beam Rifle Last Messages --------------- 01061_ Acquired Imp. Ion Engine. 01065_ O-16 Technician: "IFF HANDSHAKE FAILED. SECURING TERMINAL." 01070_ ALERT: Hostiles spotted, dispatching reinforcements to Terminal M008. 01072_ O-16 Technician: "IFF HANDSHAKE FAILED. SECURING TERMINAL." 01078_ ALERT: Hostiles spotted, dispatching reinforcements to Terminal M010. 01080_ Connecting with Recycling Unit... 01080_ Current location identified: Materials 01085_ Aluminum Leg destroyed. 01132_ Ion Engine destroyed. 01137_ K-01 Serf cleans the Nuclear Reactor. 01141_ Aluminum Leg destroyed. 01144_ Acquired Imp. Aluminum Leg. 01150_ Acquired EM Shotgun. 01158_ EM Shotgun destroyed. 01161_ S-10 Pest destroyed. 01166_ Imp. Aluminum Leg destroyed. 01170_ ECM Suite destroyed. 01170_ Acquired Spread Laser. Map ----- +----------------------------------------------------+ | ?????????????????????????????? | | ?????????????????????????????? | | ????????????#####????????????? | | ???????????? ??????????? | | ???????????? ????????? | | ???????????? !% ????????? | | ???????????? ![ ????????? | | ????????????# ![ ????????? | | ????????????#[ ?????????? | | ????????????# ?????????? | | ????????????# = ??????????? | | ????????????/ ???????????? | | ????????????# ???????????? | | ????????????# ????????????? | | ????????????# #?#??????????? | | ????????????# #?# ?????????? | | ??########### ###+#######??? | | ??# ## ## #??? | | ??# """ ## ## """ = #??? | | ??# """ # # """%g #??? | | ??# """ # # """s% #??? | | ??# + + g sgg#??? | | ??# """ # # """g #??? | | ??# """ # # """ ! #??? | | ??#! """ ## ## """ #??? | | ??# ## ## Y @#??? | | ??#/######### ###########??? | | ??# #???????# #????????????? | | ??# #???????# #????????????? | | ??# #??????? ????????????? | | ??# #??????# #???????????? | | ??# #####??# T +???????????? | | ??# #??# #???????????? | | ##### #??# #???????????? | | # ###### ##????????????? | | " # #?????????????? | | " + #?????????????? | | " # #?????????????? | | # #?????????????? | | # ##????????????? | | ##### ???????? | | ????# ###########????????? | | ????# ##/#??????????????????? | | ##### #?? ??????????????????? | | #?? ??????????????????? | | #??? ?????????????????? | | #?????????????????????? | | #?????????????????????? | | #?????????????????????? | | """ #?????????????????????? | +----------------------------------------------------+ Best States ------------- Heat Dissipation 28 Energy Generation 12 Energy Capacity 265 Matter Stores 356 Matter Capacity 400 Sight Range 16 Terrain Scan Range 16 Terrain Scan Density 10 ECM Strength 1 Armor Coverage 150 Evasion (%) 44 Item Schematics ----------------- None Robot Schematics ------------------ None Fabricated ------------ Nothing Alien Tech Used ----------------- None Achievements -------------- None Challenges ------------ None Game ------ Seed BarrageHardcellDevice Manual? 0 Play Time 00:14:10 Cumulative 44.5 hours Start 2020.09.21 @ 18:11:01 End 2020.09.21 @ 18:23:17 Sessions 1 Manual Loads 0 Difficulty Rogue Special Mode None Game No. 64 Rogue 64 Adventurer 0 Explorer 0 Win Type - Total 0 Types 0/0/0/0/0/0/0/0/0 Lore% 31 Gallery% 40 Achievement% 23 Wizard Run 0 Options --------- ASCII 1 Keyboard 1 Movement Numpad Keybinds 0 Fullscreen 2 Font 18/X11Bold Map View 76x50 Tactical HUD 1 Map Filters NONE Filters NONE Steam 0 RUN: a603a66b-737c-4384-af95-39de1aefcae6